Cogmind - Beta 14 @@@ ROGUE MODE // 2024.08.17 @ 23:54:17 Player: RedTheSorceress Result: Self-destructed Performance ------------- Evolutions (5) 2500 Regions Visited (18) 3600 Robots Destroyed (96) 480 Value Destroyed (1727) 1727 Prototype IDs (33) 660 Alien Tech Used (0) 0 Bonus (-3127) -3127 TOTAL SCORE: 5840 Bonus ------- High Alert Combat Kills 18 Follower Combat Kills 485 Entered Garrisons 200 Friendly Fire -3830 Cogmind --------- Core Integrity 359/1000 Matter 300/300 Energy 100/100 System Corruption 0% Temperature Cool (0) Movement Flying (83) Location -5/Factory Parts ------- > --- POWER (1) -------- (None) > --- PROPULSION (6) --- Flying NPT-Armored Exoskeleton > --- UTILITY (8) ------ Advanced Signal Interpreter Graphene Brace > --- WEAPON (2) ------- (None) > --- INVENTORY (5) ---- Proton Missile Launcher Plasma Cutter Thunder Hammer Peak State ------------ > --- POWER ------------ Multi-Antimatter Reactor > --- PROPULSION ------- Flying NPT-Armored Exoskeleton > --- UTILITY ---------- Armored Scrap Engine Advanced Weight Redist. System Long-range Sensor Array Advanced Signal Interpreter Improved Reaction Control System Graphene Brace Hacking Suite > --- WEAPON ----------- Hpw. Kinetic HMG Construct/G Lance > --- INVENTORY -------- Gravity Neutralizer Improved Propulsion Shielding Proton Missile Launcher Plasma Cutter Thunder Hammer [Rating: 119] Favorites ----------- Power Subdweller Power Source Engine Subdweller Power Source Power Core Micro Nuclear Core Reactor Constructs Propulsion Light Treads Treads Light Treads Leg Aluminum Leg Wheel Subdweller Monowheel Hover Unit Cooled Aerolev Unit Flight Unit VTOL Module Utility Large Storage Unit Device Armored Scrap Engine Storage Large Storage Unit Processor Advanced Signal Interpreter Hackware Hacking Suite Protection Light Armor Plating Weapon Autogun Energy Gun Backup Laser III Ballistic Gun Autogun Launcher Long-range Missile Launcher Special Weapon Plasma Cutter Impact Weapon Thunder Hammer Slashing Weapon Makeshift Sword Piercing Weapon Lance Build | -11 -10 -10 -9 -7 -7 -7 -7 -7 -7 -6 -6 -6 -6 -5 -5 -5 -5 -5 ------- Run | Yrd Mat Sub Rec Fac Was Fac Low Low Zio Pro Fac Was Fac Fac Was Fac Gar Fac Slots Evolved 10 | . . . . 6 . . . . . . 2 . . 2 . . . . Power . | . . . . . . . . . . . . . . . . . . . Propulsion 4 | . . . . 3 . . . . . . . . . 1 . . . . Utility 6 | . . . . 3 . . . . . . 2 . . 1 . . . . Weapon . | . . . . . . . . . . . . . . . . . . . Parts Attached 112 | 3 13 21 20 4 . 12 4 . . . 9 8 3 9 1 4 1 . Power 12 | . 2 3 2 . . 2 . . . . 1 2 . . . . . . Engine 8 | . 2 3 2 . . 1 . . . . . . . . . . . . Core 4 | . . . . . . 1 . . . . 1 2 . . . . . . Reactor . | . . . . . . . . . . . . . . . . . . . Propulsion 29 | 2 . 3 10 3 . 1 . . . . 4 2 1 3 . . . . Treads 9 | 2 . 3 4 . . . . . . . . . . . . . . . Leg . | . . . . . . . . . . . . . . . . . . . Wheel 4 | . . . 4 . . . . . . . . . . . . . . . Hover 1 | . . . . . . . . . . . . . . 1 . . . . Flight 15 | . . . 2 3 . 1 . . . . 4 2 1 2 . . . . Utility 38 | 1 4 1 5 . . 8 3 . . . 2 3 2 5 . 3 1 . Device 18 | 1 . . 1 . . 3 1 . . . 2 2 2 4 . 1 1 . Storage 3 | . 1 . 2 . . . . . . . . . . . . . . . Processor 2 | . . . . . . 1 . . . . . . . 1 . . . . Hackware 5 | . . . . . . 4 . . . . . . . . . 1 . . Protection 10 | . 3 1 2 . . . 2 . . . . 1 . . . 1 . . Artifact . | . . . . . . . . . . . . . . . . . . . Weapon 33 | . 7 14 3 1 . 1 1 . . . 2 1 . 1 1 1 . . Energy Gun . | . . . . . . . . . . . . . . . . . . . Energy Cannon . | . . . . . . . . . . . . . . . . . . . Ballistic Gun 13 | . 4 8 1 . . . . . . . . . . . . . . . Ballistic Cannon . | . . . . . . . . . . . . . . . . . . . Launcher 1 | . . . . . . . . . . . 1 . . . . . . . Special Weapon 2 | . 1 . 1 . . . . . . . . . . . . . . . Impact Weapon 1 | . . . . . . . . . . . . . . 1 . . . . Slashing Weapon 14 | . 2 6 1 1 . 1 1 . . . 1 1 . . . . . . Piercing Weapon 2 | . . . . . . . . . . . . . . . 1 1 . . Special Melee Weapon . | . . . . . . . . . . . . . . . . . . . Unidentified Prototypes 3 | . . . 1 . . . . . . . . . . 2 . . . . Parts Lost 31 | . 1 6 2 . . . . . . . 8 . 1 1 . 4 8 . Power 3 | . . . 1 . . . . . . . 1 . . . . . 1 . Propulsion 9 | . . 3 1 . . . . . . . 4 . . . . . 1 . Utility 15 | . 1 2 . . . . . . . . 2 . 1 1 . 4 4 . Weapon 4 | . . 1 . . . . . . . . 1 . . . . . 2 . Highest Loss Streak 6 | . 1 2 2 . . . . . . . 6 . 1 1 . 2 3 . To Critical Strikes 1 | . . 1 . . . . . . . . . . . . . . . . Average Slot Usage (%) 85 | . 99 98 89 69 69 90 91 92 92 92 80 67 70 65 64 60 34 17 Engine 8 | . 14 14 13 7 7 3 . . . . . . . . . . . . Reactor 1 | . . . . . . . . . . . . 3 6 4 4 5 2 . Treads 15 | . 28 28 21 . . . . . . . . . . . . . . . Flight 6 | . . . 4 38 38 38 38 38 38 38 30 9 10 7 3 5 5 5 Device 9 | . . . 2 7 7 10 14 15 15 15 17 26 28 29 29 24 16 5 Storage 8 | . 14 14 11 . . . . . . . . . . . . . . . Hackware 2 | . . . . . . 12 15 7 7 7 6 6 6 5 5 3 . . Protection 6 | . 13 12 4 . . . . 7 7 7 4 3 1 . . 2 . . Energy Gun 1 | . . . . . . . . . . . . 5 6 5 2 2 . . Ballistic Gun 16 | . 27 27 23 . . . . . . . . . . . 2 2 1 . Slashing Weapon 2 | . . . 2 11 15 15 15 15 15 15 11 5 6 3 . . . . Peak Build Rating 119 | 9 11 14 29 38 38 55 57 55 55 55 64 84 86 101 119 111 99 43 Average Rating 39 | 7 10 12 18 36 38 49 54 55 55 55 56 75 83 94 108 105 77 43 On Entrance 51 | 6 9 10 13 28 38 38 55 55 55 55 55 59 80 84 95 108 93 43 Naked Turns . | . . . . . . . . . . . . . . . . . . . Heaviest Build 150 | 14 34 34 150 12 12 14 19 19 19 19 19 24 24 28 31 33 23 1 Greatest Support 67 | 40 40 40 43 20 20 22 22 22 22 22 33 59 59 67 45 45 46 3 Greatest Overweight (x) 7 | . . . 7 . . . . . . . . . . . . . . . Average Overweight (x) . | . . . 1 . . . . . . . . . . . . . . . Largest Inventory Capacity 30 | 8 15 15 30 5 5 5 5 5 5 5 5 5 5 5 5 5 5 5 Average Capacity 12 | 8 14 15 20 5 5 5 5 5 5 5 5 5 5 5 5 5 5 5 Most Carried 30 | 8 15 15 30 4 4 5 5 5 5 5 5 5 5 5 5 5 4 3 Average Carried 11 | 6 13 14 19 3 4 4 4 5 5 5 4 4 4 4 5 4 3 3 Final Capacity 15 | 8 15 15 5 5 5 5 5 5 5 5 5 5 5 5 5 5 5 5 Final Carried 15 | 8 15 15 5 4 4 5 5 5 5 5 2 5 5 5 5 4 3 3 Scrap Engine Consumption 122 | . . . 4 . . 8 . . . 1 8 33 4 27 28 9 . . Constructs Created 4 | . . . . . . . . . . . 2 2 . . . . . . Constructs Modified 37 | . . . . . . . . . . . . 9 2 9 14 3 . . Class Distribution -------------------- 39% | Mutant 25% | Construct 16% | Scavenger-Mutant 7% | Hauler-Mutant 4% | Sprinter 3% | Hacker-Sprinter Dominant Class ---------------- Mutant | -10/Materials Mutant | -10/Subcaves Hauler-Mutant | -9/Recycling Sprinter | -7/Factory Sprinter | -7/Waste Hacker-Sprinter | -7/Factory Hacker-Sprinter | -7/Lower Caves Sprinter | -7/Lower Caves Sprinter | -7/Zion Sprinter | -6/Proximity Caves Sprinter | -6/Factory Construct | -6/Waste Construct | -6/Factory Construct | -5/Factory Construct | -5/Waste Construct | -5/Factory Construct | -5/Garrison Construct | -5/Factory Resources | -11 -10 -10 -9 -7 -7 -7 -7 -7 -7 -6 -6 -6 -6 -5 -5 -5 -5 -5 ----------- Run | Yrd Mat Sub Rec Fac Was Fac Low Low Zio Pro Fac Was Fac Fac Was Fac Gar Fac Matter Collected 2565 | 272 567 659 517 . . 129 71 . . . 29 176 30 80 20 15 . . Remotely . | . . . . . . . . . . . . . . . . . . . Salvage Created 4270 | 107 937 639 920 . . 80 26 . . . 59 323 301 193 459 226 . . Parts 236 | 7 61 47 37 . . 11 . . . . 10 14 12 7 23 7 . . Haulers Intercepted 7 | . 2 . . . . . . . . . . . 2 2 . 1 . . Recyclers Shooed 10 | . 2 . 8 . . . . . . . . . . . . . . . Parts Field Recycled . | . . . . . . . . . . . . . . . . . . . Retrieved Matter . | . . . . . . . . . . . . . . . . . . . Parts Self-Destructed 21 | . . 20 . . . . 1 . . . . . . . . . . . Prevented 1 | . . . . . . . 1 . . . . . . . . . . . Kills | -11 -10 -10 -9 -7 -7 -7 -7 -7 -7 -6 -6 -6 -6 -5 -5 -5 -5 -5 ------- Run | Yrd Mat Sub Rec Fac Was Fac Low Low Zio Pro Fac Was Fac Fac Was Fac Gar Fac Combat Hostiles Destroyed 41 | . 15 13 3 . . . . . . . 4 . 4 . . 2 . . Melee 4 | . . . . . . . . . . . . . 4 . . . . . Guns 33 | . 15 13 3 . . . . . . . . . . . . 2 . . AOE 4 | . . . . . . . . . . . 4 . . . . . . . Classes Destroyed 15 | 2 7 3 1 . . . . . . . . 1 . . . 1 . . Worker 4 | . 1 . . . . 2 . . . . . . 1 . . . . . Builder 2 | . 1 . . . . . . . . . 1 . . . . . . . Tunneler 2 | 2 . . . . . . . . . . . . . . . . . . Hauler 7 | . 2 . . . . . . . . . . . 2 2 . 1 . . Recycler 15 | 1 4 . 10 . . . . . . . . . . . . . . . Operator 2 | . 1 . . . . 1 . . . . . . . . . . . . Turret 1 | . . 1 . . . . . . . . . . . . . . . . Watcher 5 | . 3 . . . . 1 . . . . 1 . . . . . . . Swarmer 17 | . 8 . 1 . . . . . . . 4 . 4 . . . . . Grunt 9 | . 7 . 1 . . . . . . . . . . . . 1 . . Sentry 2 | . . 1 1 . . . . . . . . . . . . . . . Hunter 1 | . . . . . . . . . . . . . . . . 1 . . Subdweller 12 | . . 12 . . . . . . . . . . . . . . . . Scrapper 1 | . . . 1 . . . . . . . . . . . . . . . Wasp 10 | . . . . . . . . . . . . 5 . . 5 . . . Martyr 6 | . . . . . . . . . . . . 2 . . 4 . . . Best Kill Streak 8 | 1 8 2 4 . . 3 . . . . 3 . 4 1 . 1 . . Combat Bots Only 5 | . 5 2 1 . . . . . . . 2 . 4 . . 1 . . Max Kills in Single Turn 2 | 1 1 2 1 . . 1 . . . . 2 1 1 1 1 1 . . Gunslinging 1 | . . 1 . . . . . . . . . . . . . . . . Exploded 1 | . . . . . . . . . . . 1 . . . . . . . Melee 1 | . . . . . . . . . . . . . 1 . . . . . Uniques/NPCs Destroyed . | . . . . . . . . . . . . . . . . . . . Combat | -11 -10 -10 -9 -7 -7 -7 -7 -7 -7 -6 -6 -6 -6 -5 -5 -5 -5 -5 -------- Run | Yrd Mat Sub Rec Fac Was Fac Low Low Zio Pro Fac Was Fac Fac Was Fac Gar Fac Hostile Shots Fired 752 | . 78 86 34 . . 12 11 4 6 8 103 . 74 24 . 27 285 . Missed 331 | . 19 25 11 . . 7 9 3 2 5 61 . 44 12 . 6 127 . Damage Taken 6950 | . 543 1248 383 . . 47 54 15 52 97 831 . 394 164 . 388 2734 . Core 1043 | . 77 73 11 . . 25 15 . . . 115 . 86 22 . 18 601 . Absorbed by Shields 191 | . . . 112 . . . . . . . . . . . . . 79 . Redirected to Shielding 157 | . . . . . . . . . . . . . 88 . . 69 . . Regen/Repaired (Parts) 952 | . 69 . . . . 128 21 . . . 115 283 100 143 . 93 . . Core Remaining (%) 76 | 100 . . 35 . . . . . . 94 . . 76 . . . . . Volleys Fired 188 | 11 59 52 39 . . . . . . . 5 10 1 . . 11 . . Largest 2 | 2 2 2 2 . . . . . . . 1 1 1 . . 1 . . Hottest 100 | 40 100 48 48 . . . . . . . 43 40 67 . . 69 . . Shots Fired 352 | 22 118 105 80 . . . . . . . 5 10 1 . . 11 . . Gun 346 | 22 117 105 80 . . . . . . . . 10 1 . . 11 . . Cannon . | . . . . . . . . . . . . . . . . . . . Launcher 5 | . . . . . . . . . . . 5 . . . . . . . Special 1 | . 1 . . . . . . . . . . . . . . . . . Kinetic 335 | 22 117 105 80 . . . . . . . . . . . . 11 . . Thermal 12 | . 1 . . . . . . . . . . 10 1 . . . . . Explosive 5 | . . . . . . . . . . . 5 . . . . . . . Electromagnetic . | . . . . . . . . . . . . . . . . . . . Robot Hit Streak 55 | 7 9 49 55 . . . . . . . 2 3 4 . . 2 . . Robot Miss Streak 4 | 2 3 2 4 . . . . . . . 1 1 . . . 4 . . Penetration Max . | . . . . . . . . . . . . . . . . . . . Secondary Targets 5 | . 2 3 . . . . . . . . . . . . . . . . Max Gunslinging Chain 1 | . 1 1 . . . . . . . . . . . . . . . . Shots Hit Robots 305 | 13 74 86 53 . . 6 2 . . . 3 21 21 5 16 5 . . Core Hits 125 | 4 31 25 21 . . 4 1 . . . 8 6 8 3 10 4 . . Critical Kills 1 | . 1 . . . . . . . . . . . . . . . . . Critical Parts Destroyed . | . . . . . . . . . . . . . . . . . . . Critical Strikes 4 | . 1 . . . . . . . . . . . 2 . 1 . . . Destroy 1 | . 1 . . . . . . . . . . . . . . . . . Sever 2 | . . . . . . . . . . . . . 2 . . . . . Impale 1 | . . . . . . . . . . . . . . . 1 . . . Melee Attacks 153 | . 9 24 . . . 23 6 . . . 5 13 35 18 16 4 . . Impact 5 | . . . . . . . . . . . . . . 5 . . . . Slashing 128 | . 9 24 . . . 23 6 . . . 5 13 35 13 . . . . Piercing 20 | . . . . . . . . . . . . . . . 16 4 . . Sneak Attacks 41 | . 1 . . . . 3 . . . . . 13 5 2 16 1 . . Combat Hostiles . | . . . . . . . . . . . . . . . . . . . Follow-up Attacks 1 | . . . . . . 1 . . . . . . . . . . . . Damage Inflicted 8128 | 134 1194 1063 815 . . 399 191 . . . 611 1033 1042 276 1169 201 . . Guns 3402 | 134 1139 1063 801 . . . . . . . . 107 21 . . 137 . . Cannons . | . . . . . . . . . . . . . . . . . . . Explosions 556 | . . . . . . . . . . . 556 . . . . . . . Melee 4151 | . 50 . . . . 399 191 . . . 55 926 1021 276 1169 64 . . Ramming 19 | . 5 . 14 . . . . . . . . . . . . . . . Kinetic 3274 | 134 1139 1063 801 . . . . . . . . . . . . 137 . . Thermal 128 | . . . . . . . . . . . . 107 21 . . . . . Explosive 556 | . . . . . . . . . . . 556 . . . . . . . Electromagnetic . | . . . . . . . . . . . . . . . . . . . Impact . | . . . . . . . . . . . . . . . . . . . Slashing 2918 | . 50 . . . . 399 191 . . . 55 926 1021 276 . . . . Piercing 1233 | . . . . . . . . . . . . . . . 1169 64 . . Highest Corruption 6 | . 1 1 1 . . 6 . . . . . . . . . . . . Average Corruption 1 | . 1 1 1 . . 3 . . . . . . . . . . . . Corruption Purged 6 | . . . . . . 6 . . . . . . . . . . . . Corruption Blocked . | . . . . . . . . . . . . . . . . . . . Effects 52 | . 8 24 19 . . 1 . . . . . . . . . . . . Message Errors 10 | . 2 6 2 . . . . . . . . . . . . . . . Matter Fused 11 | . . 5 6 . . . . . . . . . . . . . . . Heat Flow Errors 12 | . 2 6 3 . . 1 . . . . . . . . . . . . Energy Discharges 6 | . 1 3 2 . . . . . . . . . . . . . . . Data Loss (minor) 5 | . . 2 3 . . . . . . . . . . . . . . . Data Loss (major) 3 | . 2 1 . . . . . . . . . . . . . . . . Misfires 4 | . 1 1 2 . . . . . . . . . . . . . . . Alerts 1 | . . . 1 . . . . . . . . . . . . . . . Overload Shots . | . . . . . . . . . . . . . . . . . . . Overflow Damage 448 | . . . . . . 77 82 . . . 46 121 68 6 48 . . . Projectiles . | . . . . . . . . . . . . . . . . . . . Explosions 46 | . . . . . . . . . . . 46 . . . . . . . Melee 402 | . . . . . . 77 82 . . . . 121 68 6 48 . . . Knockbacks . | . . . . . . . . . . . . . . . . . . . Impact . | . . . . . . . . . . . . . . . . . . . Kinetic . | . . . . . . . . . . . . . . . . . . . Secondary . | . . . . . . . . . . . . . . . . . . . Self-Inflicted Damage 90 | . . . . . . . . . . . 90 . . . . . . . Shots 2 | . . . . . . . . . . . 2 . . . . . . . Rammed 3 | . 1 . 2 . . . . . . . . . . . . . . . Targets Rammed 3 | . 1 . 2 . . . . . . . . . . . . . . . Kicked . | . . . . . . . . . . . . . . . . . . . Crushed . | . . . . . . . . . . . . . . . . . . . Highest Temperature 249 | . 101 238 249 4 2 246 33 116 140 158 36 4 35 14 . 40 . . Average Temperature 35 | . 22 86 37 2 2 47 3 52 61 78 11 3 20 14 . 17 . . Received Heat Transfer 1351 | . 123 297 172 . . 12 9 . . . 117 . 15 60 . 90 456 . Siege Activations . | . . . . . . . . . . . . . . . . . . . Robots Corrupted . | . . . . . . . . . . . . . . . . . . . Combat Hostiles . | . . . . . . . . . . . . . . . . . . . Parts Fried . | . . . . . . . . . . . . . . . . . . . Impact Corruptions . | . . . . . . . . . . . . . . . . . . . Robots Melted . | . . . . . . . . . . . . . . . . . . . Combat Hostiles . | . . . . . . . . . . . . . . . . . . . Parts Melted 3 | . . 1 1 . . . . . . . . . . . . 1 . . Heat Transferred 333 | . . . . . . . . . . . . 296 37 . . . . . Parts Sabotaged . | . . . . . . . . . . . . . . . . . . . Parts Stolen . | . . . . . . . . . . . . . . . . . . . Parts Stripped . | . . . . . . . . . . . . . . . . . . . Power Chain Reactions . | . . . . . . . . . . . . . . . . . . . Alert | -11 -10 -10 -9 -7 -7 -7 -7 -7 -7 -6 -6 -6 -6 -5 -5 -5 -5 -5 ------- Run | Yrd Mat Sub Rec Fac Was Fac Low Low Zio Pro Fac Was Fac Fac Was Fac Gar Fac Peak Influence 573 | 15 266 . 160 324 158 551 . . . . 573 214 429 553 70 247 495 267 Initial 300 | . 9 . . 300 113 110 . . . . 46 197 . 210 70 . 111 267 Average 106 | 8 133 . 20 310 123 340 . . . . 250 41 198 316 27 103 247 267 Maximum Alert Level 2 | . 1 . . 1 . 2 . . . . 2 1 2 2 . 1 2 1 Low Security (%) 77 | 100 75 . 100 . 100 21 . . . . 38 92 56 1 100 96 31 . Level 1 18 | . 24 . . 100 . 37 . . . . 42 7 41 74 . 3 57 100 Level 2 4 | . . . . . . 40 . . . . 19 . 2 23 . . 11 . Level 3 . | . . . . . . . . . . . . . . . . . . . Level 4 . | . . . . . . . . . . . . . . . . . . . Level 5 . | . . . . . . . . . . . . . . . . . . . High Security . | . . . . . . . . . . . . . . . . . . . Max Security . | . . . . . . . . . . . . . . . . . . . Squads Dispatched 25 | . 3 . . . . 2 . . . . 4 . 6 5 . 5 . . Investigation 12 | . 1 . . . . 2 . . . . 4 . 2 3 . . . . Extermination 2 | . . . . . . . . . . . . . 1 1 . . . . Reinforcement 9 | . 2 . . . . . . . . . . . 3 1 . 3 . . Assault . | . . . . . . . . . . . . . . . . . . . Garrison 2 | . . . . . . . . . . . . . . . . 2 . . Intercept . | . . . . . . . . . . . . . . . . . . . Searches Triggered 1 | . . . . . . . . . . . . . . 1 . . . . Construction Impeded 1 | . . . . . . . . . . . . . . . . 1 . . Haulers Reinforced 3 | . . . . . . . . . . . . . 1 . . 2 . . Active Scanning Responses . | . . . . . . . . . . . . . . . . . . . Cargo Convoy Interrupts . | . . . . . . . . . . . . . . . . . . . Stealth | -11 -10 -10 -9 -7 -7 -7 -7 -7 -7 -6 -6 -6 -6 -5 -5 -5 -5 -5 --------- Run | Yrd Mat Sub Rec Fac Was Fac Low Low Zio Pro Fac Was Fac Fac Was Fac Gar Fac Distress Signals 6 | . 1 . 1 . . . . . . 3 1 . . . . . . . Communications Jammed . | . . . . . . . . . . . . . . . . . . . Distress Signals . | . . . . . . . . . . . . . . . . . . . Times Spotted 235 | . 22 14 7 . 6 14 5 4 4 14 37 5 29 25 . 15 34 . Peak Tracking Total 17 | . 5 2 5 . 6 4 4 3 4 14 9 2 8 17 . 9 15 . Tactical Retreats 43 | . 1 . . . . 4 2 2 . 1 8 . 7 7 . 2 9 . Traps | -11 -10 -10 -9 -7 -7 -7 -7 -7 -7 -6 -6 -6 -6 -5 -5 -5 -5 -5 ------- Run | Yrd Mat Sub Rec Fac Was Fac Low Low Zio Pro Fac Was Fac Fac Was Fac Gar Fac Traps Triggered 16 | . 2 2 . 1 . . . . . . 1 . . 2 . 1 7 . Indirectly . | . . . . . . . . . . . . . . . . . . . Trap Hack Attempts . | . . . . . . . . . . . . . . . . . . . Triggered . | . . . . . . . . . . . . . . . . . . . Disarmed . | . . . . . . . . . . . . . . . . . . . Reprogrammed 6 | . 6 . . . . . . . . . . . . . . . . . Reused . | . . . . . . . . . . . . . . . . . . . Traps Extracted . | . . . . . . . . . . . . . . . . . . . Installed . | . . . . . . . . . . . . . . . . . . . Triggered 1 | . . . . . . . 1 . . . . . . . . . . . Machines | -11 -10 -10 -9 -7 -7 -7 -7 -7 -7 -6 -6 -6 -6 -5 -5 -5 -5 -5 ---------- Run | Yrd Mat Sub Rec Fac Was Fac Low Low Zio Pro Fac Was Fac Fac Was Fac Gar Fac Machines Disabled 10 | . 1 2 2 . . 2 . . . . 3 . . . . . . . Max in Single Turn 2 | . 1 1 2 . . 1 . . . . 1 . . . . . . . Machines Repaired . | . . . . . . . . . . . . . . . . . . . Machines Dismantled . | . . . . . . . . . . . . . . . . . . . Machines Sabotaged . | . . . . . . . . . . . . . . . . . . . Overloaded Fab Kills . | . . . . . . . . . . . . . . . . . . . Hacking | -11 -10 -10 -9 -7 -7 -7 -7 -7 -7 -6 -6 -6 -6 -5 -5 -5 -5 -5 --------- Run | Yrd Mat Sub Rec Fac Was Fac Low Low Zio Pro Fac Was Fac Fac Was Fac Gar Fac Machines Accessed 81 | . 9 1 14 3 . 15 . . . . 14 . 7 10 . 6 2 . Terminals 41 | . 6 . 6 1 . 11 . . . . 5 . 1 5 . 4 2 . Fabricators 5 | . . . . . . 1 . . . . 2 . 1 1 . . . . Repair Stations 7 | . 1 . . . . 1 . . . . 3 . 1 1 . . . . Recycling Units 16 | . 2 . 6 2 . 1 . . . . 2 . 1 2 . . . . Scanalyzers 4 | . . . . . . 1 . . . . 1 . 1 . . 1 . . Garrison Access 5 | . . . . . . . . . . . 1 . 2 1 . 1 . . Total Hacks 234 | . 28 1 65 5 . 46 . . . . 36 . 14 23 . 12 4 . Successful 131 | . 16 1 54 2 . 20 . . . . 19 . 4 10 . 4 1 . Failed 103 | . 12 . 11 3 . 26 . . . . 17 . 10 13 . 8 3 . Catastrophic 18 | . 1 . . 1 . 7 . . . . 2 . 2 3 . 1 1 . Database Lockouts . | . . . . . . . . . . . . . . . . . . . Manual 111 | . 14 . 25 2 . 34 . . . . 14 . 6 12 . 4 . . Terminals 126 | . 19 . 26 1 . 41 . . . . 16 . 1 10 . 8 4 . Fabricators 11 | . . . . . . 2 . . . . 4 . 3 2 . . . . Repair Stations 12 | . 3 . . . . 1 . . . . 4 . 1 3 . . . . Recycling Units 39 | . 6 . 13 4 . 1 . . . . 7 . 2 6 . . . . Scanalyzers 9 | . . . . . . 1 . . . . 3 . 2 . . 3 . . Garrison Access 10 | . . . . . . . . . . . 2 . 5 2 . 1 . . Terminal Hacks 68 | . 11 1 37 . . 10 . . . . 6 . . 1 . 1 1 . Record 24 | . . . 24 . . . . . . . . . . . . . . . Part Schematic 3 | . . . . . . 2 . . . . 1 . . . . . . . Robot Analysis 5 | . 4 . 1 . . . . . . . . . . . . . . . Prototype ID Bank 10 | . 1 . 8 . . 1 . . . . . . . . . . . . Branch Access Points 2 | . . . . . . 1 . . . . 1 . . . . . . . Emergency Access Points 1 | . . . . . . . . . . . . . . . . . 1 . Fabricator Index 2 | . . . . . . 1 . . . . 1 . . . . . . . Alert Level 2 | . 1 . 1 . . . . . . . . . . . . . . . Locate Traps 6 | . 1 . . . . 3 . . . . 2 . . . . . . . Reprogram Traps 2 | . 2 . . . . . . . . . . . . . . . . . Hauler Manifests 6 | . 1 . 1 . . 1 . . . . 1 . . 1 . 1 . . Zone Layout 2 | . 1 . . . . 1 . . . . . . . . . . . . Derelict Proto ID Bank 1 | . . 1 . . . . . . . . . . . . . . . . Release Object 2 | . . . 2 . . . . . . . . . . . . . . . Fabricator Hacks 9 | . . . . . . 2 . . . . 4 . 1 2 . . . . Load Schematic 5 | . . . . . . 1 . . . . 2 . 1 1 . . . . Build 4 | . . . . . . 1 . . . . 2 . . 1 . . . . Repair Station Hacks 2 | . 2 . . . . . . . . . . . . . . . . . Scan Component 1 | . 1 . . . . . . . . . . . . . . . . . Repair 1 | . 1 . . . . . . . . . . . . . . . . . Recycling Unit Hacks 10 | . . . 6 1 . . . . . . 1 . . 2 . . . . Retrieve Components 10 | . . . 6 1 . . . . . . 1 . . 2 . . . . Scanalyzer 5 | . . . . . . . . . . . 2 . 2 . . 1 . . Insert Component 3 | . . . . . . . . . . . 1 . 1 . . 1 . . Analyze 2 | . . . . . . . . . . . 1 . 1 . . . . . Garrison Access Hacks 1 | . . . . . . . . . . . . . . . . 1 . . Unlock Access 1 | . . . . . . . . . . . . . . . . 1 . . Unauthorized Hacks 36 | . 3 . 11 1 . 8 . . . . 6 . 1 5 . 1 . . Terminals 17 | . 1 . 5 . . 7 . . . . 2 . . 1 . 1 . . Track 1 | . . . 1 . . . . . . . . . . . . . . . Assimilate 4 | . . . . . . 2 . . . . 1 . . 1 . . . . Botnet 11 | . 1 . 4 . . 4 . . . . 1 . . . . 1 . . Operators 1 | . . . . . . 1 . . . . . . . . . . . . Fabricators . | . . . . . . . . . . . . . . . . . . . Repair Stations 5 | . . . . . . 1 . . . . 2 . 1 1 . . . . Patch 5 | . . . . . . 1 . . . . 2 . 1 1 . . . . Recycling Units 12 | . 2 . 6 1 . . . . . . . . . 3 . . . . Reject 1 | . . . . . . . . . . . . . . 1 . . . . Recyclers 2 | . . . . 1 . . . . . . . . . 1 . . . . Mask 3 | . 2 . . . . . . . . . . . . 1 . . . . Tunnel 6 | . . . 6 . . . . . . . . . . . . . . . Scanalyzers . | . . . . . . . . . . . . . . . . . . . Garrison Access 2 | . . . . . . . . . . . 2 . . . . . . . Reprogram 1 | . . . . . . . . . . . 1 . . . . . . . Watchers 1 | . . . . . . . . . . . 1 . . . . . . . Data Cores Recovered . | . . . . . . . . . . . . . . . . . . . Used . | . . . . . . . . . . . . . . . . . . . Hacking Detections 67 | . 9 . 8 3 . 14 . . . . 12 . 5 9 . 5 2 . Full Trace Events 6 | . . . . . . 1 . . . . 2 . 1 2 . . . . Feedback Events . | . . . . . . . . . . . . . . . . . . . Feedback Blocked . | . . . . . . . . . . . . . . . . . . . Robot Schematics Acquired . | . . . . . . . . . . . . . . . . . . . Robots Built . | . . . . . . . . . . . . . . . . . . . Authchips . | . . . . . . . . . . . . . . . . . . . Time . | . . . . . . . . . . . . . . . . . . . Total Robot Build Rating . | . . . . . . . . . . . . . . . . . . . Part Schematics Acquired 5 | . . . . . . 2 . . . . 2 . 1 . . . . . Parts Built 4 | . . . . . . 1 . . . . 2 . . 1 . . . . Authchips . | . . . . . . . . . . . . . . . . . . . Time 341 | . . . . . . 73 . . . . 134 . . 134 . . . . Total Part Build Rating 15 | . . . . . . 3 . . . . 8 . . 4 . . . . Parts Repaired 1 | . 1 . . . . . . . . . . . . . . . . . Time 26 | . 26 . . . . . . . . . . . . . . . . . Parts Recycled . | . . . . . . . . . . . . . . . . . . . Recycled Matter . | . . . . . . . . . . . . . . . . . . . Retrieved Matter . | . . . . . . . . . . . . . . . . . . . Retrieved Components 30 | . . . 24 2 . . . . . . . . . 4 . . . . Parts Scanalyzed 2 | . . . . . . . . . . . 1 . 1 . . . . . Part Schematics Acquired 2 | . . . . . . . . . . . 1 . 1 . . . . . Parts Damaged . | . . . . . . . . . . . . . . . . . . . Bothacking | -11 -10 -10 -9 -7 -7 -7 -7 -7 -7 -6 -6 -6 -6 -5 -5 -5 -5 -5 ------------ Run | Yrd Mat Sub Rec Fac Was Fac Low Low Zio Pro Fac Was Fac Fac Was Fac Gar Fac Used RIF Installer . | . . . . . . . . . . . . . . . . . . . Robots Hacked . | . . . . . . . . . . . . . . . . . . . Non-combat . | . . . . . . . . . . . . . . . . . . . Combat . | . . . . . . . . . . . . . . . . . . . Robot Hacks Applied . | . . . . . . . . . . . . . . . . . . . Relay Couplers Released . | . . . . . . . . . . . . . . . . . . . Fabnet Peak Effective % . | . . . . . . . . . . . . . . . . . . . Robots Rewired 7 | . . . 7 . . . . . . . . . . . . . . . Allies Hacked . | . . . . . . . . . . . . . . . . . . . Hacks Repelled . | . . . . . . . . . . . . . . . . . . . Allies | -11 -10 -10 -9 -7 -7 -7 -7 -7 -7 -6 -6 -6 -6 -5 -5 -5 -5 -5 -------- Run | Yrd Mat Sub Rec Fac Was Fac Low Low Zio Pro Fac Was Fac Fac Was Fac Gar Fac Total Allies 50 | . . . 7 . 1 1 . . . . 1 19 . 1 20 . . . Largest Group 20 | . . . 7 . 1 1 . . . . 1 19 3 1 20 11 . . Highest-Rated Group 732 | . . . 116 . 31 26 . . . . 26 702 98 26 732 407 . . Highest-Rated Ally 50 | . . . 27 . 31 26 . . . . 26 50 46 26 50 46 . . Total Orders 1 | . . . 1 . . . . . . . . . . . . . . . STAY 1 | . . . 1 . . . . . . . . . . . . . . . Ally Attacks 178 | . . . 20 . 2 . . . . . . 100 2 . . 54 . . Total Damage 5703 | . . . 449 . 44 . . . . . . 3830 77 . . 1303 . . Kills 21 | . . . 7 . . . . . . . . 9 . . . 5 . . Allies Corrupted 1 | . . . . . . . . . . . . . . . . 1 . . Allies Melted . | . . . . . . . . . . . . . . . . . . . Intel | -11 -10 -10 -9 -7 -7 -7 -7 -7 -7 -6 -6 -6 -6 -5 -5 -5 -5 -5 ------- Run | Yrd Mat Sub Rec Fac Was Fac Low Low Zio Pro Fac Was Fac Fac Was Fac Gar Fac Robot Analysis Total 5 | . 4 . 1 . . . . . . . . . . . . . . . Derelict Logs Recovered 4 | . . 2 . . . . 2 . . . . . . . . . . . Drone Launches . | . . . . . . . . . . . . . . . . . . . Drone Recoveries . | . . . . . . . . . . . . . . . . . . . Exploration | -11 -10 -10 -9 -7 -7 -7 -7 -7 -7 -6 -6 -6 -6 -5 -5 -5 -5 -5 ------------- Run | Yrd Mat Sub Rec Fac Was Fac Low Low Zio Pro Fac Was Fac Fac Was Fac Gar Fac Turns Passed 15469 | 112 1581 4730 3139 51 15 416 296 93 52 39 478 1598 368 846 1019 377 255 4 Spaces Moved 12153 | 43 566 2731 1208 136 66 1359 770 322 185 156 954 421 738 1420 388 384 300 6 Core 22 | . . . . . . . . . . . . . . . . . 16 6 Treads 4094 | 26 566 2731 771 . . . . . . . . . . . . . . . Legs 51 | 17 . . . . . . . . . . . . . . 34 . . . Wheels 171 | . . . 171 . . . . . . . . . . . . . . . Hover 476 | . . . . . . . . . . . . . 308 168 . . . . Flight 7339 | . . . 266 136 66 1359 770 322 185 156 954 421 430 1252 354 384 284 . Fastest Speed 23 | 120 160 160 95 23 23 23 24 24 24 24 24 36 35 37 55 83 50 50 Average Speed 89 | 144 160 160 215 23 23 23 24 24 24 24 29 40 36 46 72 83 81 50 Slowest Speed 400 | 160 160 160 400 23 23 24 24 24 24 24 39 54 38 55 118 83 83 50 Overloaded Moves . | . . . . . . . . . . . . . . . . . . . Propulsion Burnouts . | . . . . . . . . . . . . . . . . . . . Robots Hopped 78 | . . . . 3 . 14 2 . . 1 19 . 4 19 . 1 15 . Cave-ins Triggered . | . . . . . . . . . . . . . . . . . . . Exploration Rate (%) 50 | 6 97 97 99 5 67 44 86 58 14 37 24 96 30 46 95 12 46 1 Regions Visited 18 Branch Regions 6 Pre-discovered Areas 8 | . . 2 6 . . . . . . . . . . . . . . . Known Exits Taken 4 | . . . . . . 1 . . . 1 . . 1 . . 1 . . Unknown Exits Taken 7 | 1 1 1 1 . . . 1 1 1 . . . . . . . . . Scrap Searched 13 | . . 4 . . . . 6 1 1 1 . . . . . . . . Spaces Dug 58 | . 3 . . . . 9 3 . . . 24 . 3 13 . 3 . . Terrain Destroyed 95 | . 3 . . . . 9 3 . . . 60 . 3 13 . 4 . . Melee 37 | . 2 . . . . 9 3 . . . 4 . 3 13 . 3 . . Projectile 2 | . 1 . . . . . . . . . . . . . . 1 . . AOE 56 | . . . . . . . . . . . 56 . . . . . . . Terrain Rammed . | . . . . . . . . . . . . . . . . . . . Walls Destroyed . | . . . . . . . . . . . . . . . . . . . Machines Disabled . | . . . . . . . . . . . . . . . . . . . Actions | -11 -10 -10 -9 -7 -7 -7 -7 -7 -7 -6 -6 -6 -6 -5 -5 -5 -5 -5 --------- Run | Yrd Mat Sub Rec Fac Was Fac Low Low Zio Pro Fac Was Fac Fac Was Fac Gar Fac Total 16151 | 74 1134 2962 1672 150 65 1412 869 336 191 155 1118 1831 796 1563 1099 423 295 6 Wait 3304 | 12 449 102 253 . . 18 87 15 7 1 151 1355 19 122 693 20 . . Move 11989 | 42 565 2730 1207 130 65 1330 765 321 184 153 916 420 730 1382 387 382 274 6 Hop 70 | . . . . 3 . 14 2 . . 1 19 . 3 19 . 1 8 . Pick Up 122 | 4 20 16 50 2 . 8 2 . . . 7 6 3 3 1 . . . Fast Attach 39 | 1 3 2 8 . . 6 2 . . . 1 6 1 6 . 3 . . Attach 31 | 2 2 6 1 3 . 2 1 . . . 7 1 2 2 . 1 1 . Detach 4 | . 1 . 1 . . . . . . . . . . 2 . . . . Swap 42 | . 8 13 11 1 . 4 1 . . . 1 1 . 1 1 . . . Drop 115 | 2 17 17 26 . . 12 4 . . . 6 19 2 8 1 1 . . Fire 188 | 11 59 52 39 . . . . . . . 5 10 1 . . 11 . . Melee 147 | . 9 24 . . . 18 5 . . . 5 13 35 18 16 4 . . Ram . | . . . . . . . . . . . . . . . . . . . Kick . | . . . . . . . . . . . . . . . . . . . Crush 3 | . 1 . 2 . . . . . . . . . . . . . . . Escape Stasis 12 | . . . . . . . . . . . . . . . . . 12 . Rewire 81 | . . . 71 10 . . . . . . . . . . . . . . Trap . | . . . . . . . . . . . . . . . . . . . Miscellaneous 4 | . . . 3 1 . . . . . . . . . . . . . . Route ------- -11/Scrapyard -10/Materials (discovered 6 exits: [*Mat x3] / [*Min x2] / *Sub) -10/Subcaves (discovered 3 exits: [*Mat x2] / *Rec) -9/Recycling -7/Factory -7/Waste -7/Factory (discovered 4 exits: *Fac x2 / *Low x2) -7/Lower Caves -7/Lower Caves -7/Zion -6/Proximity Caves -6/Factory (discovered 8 exits: *Fac x4 / Low x2 / Ext x2) -6/Waste -6/Factory -5/Factory (discovered 2 exits: *Fac / *Upp) -5/Waste -5/Factory (discovered 2 exits: *Fac / Gar) -5/Garrison (discovered 3 exits: *Fac x3) -5/Factory History --------- Turn | Location | Event 21 | -11/Scrapyard | Discovered new exit (range 3) 113 | -11/Scrapyard | Entered Materials 235 | -10/Materials | Discovered new exit (range 16) 316 | -10/Materials | Build established: Mutant 545 | -10/Materials | Discovered new exit (range 10) 982 | -10/Materials | Repaired Lgt. Armor Plating 1016 | -10/Materials | Discovered new exit (range 15) 1077 | -10/Materials | Discovered new exit (range 14) 1226 | -10/Materials | Discovered new exit (range 15) 1686 | -10/Materials | Discovered new exit (range 5) 1694 | -10/Materials | Entered Subcaves 1714 | -10/Subcaves | Learned Materials stockpile data 1818 | -10/Subcaves | Learned location of Storage (-9) 1937 | -10/Subcaves | A swath of the cavern ceiling suddenly collapsed 2730 | -10/Subcaves | Discovered new exit (range 13) 2736 | -10/Subcaves | Learned location of Zion (-7) 2736 | -10/Subcaves | Met a Zionite searching for "candidates" 2809 | -10/Subcaves | Ambushed by Subdwellers from Twisted Machinery 3025 | -10/Subcaves | Discovered new exit (range 8) 3297 | -10/Subcaves | Visited 4L-MR0's lab 3321 | -10/Subcaves | Found Arachnoskeleton 3724 | -10/Subcaves | Core integrity fell below 50% 3732 | -10/Subcaves | Ambushed by Subdwellers from Twisted Machinery 4255 | -10/Subcaves | Build established: Scavenger-Mutant 4296 | -10/Subcaves | Shifting Twisted Machinery released Flamer 5632 | -10/Subcaves | Discovered new exit (range 15) 6371 | -10/Subcaves | Build established: Mutant 6424 | -10/Subcaves | Entered Recycling 7197 | -9/Recycling | Build established: Commander-Mutant 7625 | -9/Recycling | Discovered new exit (range 16) 7651 | -9/Recycling | Build established: Scavenger-Mutant 7734 | -9/Recycling | Scanned before Scraplab entrance 8054 | -9/Recycling | Build established: Hauler-Mutant 8852 | -9/Recycling | Entered Scraplab 8928 | -9/Recycling | Angered Scraplab inhabitants 8937 | -9/Recycling | Found Prototype Device 8970 | -9/Recycling | Identified Scrap Engine 9226 | -9/Recycling | Build established: Mutant 9563 | -9/Recycling | Entered Factory 9563 | -7/Factory | Evolved 6 slots: Propulsion x3, Utility x3 9614 | -7/Factory | Sucked down chute 9614 | -7/Factory | Entered Waste 9615 | -7/Waste | Met a frightened Derelict 9616 | -7/Waste | Spotted C-40 Crusher 9622 | -7/Waste | Spotted C-40 Crusher 9623 | -7/Waste | Spotted C-40 Crusher 9623 | -7/Waste | Spotted C-40 Crusher 9624 | -7/Waste | Spotted C-40 Crusher 9626 | -7/Waste | Spotted C-40 Crusher 9627 | -7/Waste | Discovered new exit (range 10) 9629 | -7/Waste | EMP discharged 9629 | -7/Waste | Entered Factory 9680 | -7/Factory | Discovered new exit (range 11) 9683 | -7/Factory | Identified exit to Factory 9801 | -7/Factory | Identified exit to Lower Caves 9835 | -7/Factory | Discovered exit to Factory (range 14) 10019 | -7/Factory | Fabricated Hacking Suite? 10045 | -7/Factory | Entered Lower Caves 10091 | -7/Lower Caves | Build established: Hacker-Sprinter 10213 | -7/Lower Caves | Learned location of 2 exits from Factory 10218 | -7/Lower Caves | Encountered a Warlord checkpoint 10300 | -7/Lower Caves | Discovered new exit (range 12) 10304 | -7/Lower Caves | Learned Factory stockpile data 10341 | -7/Lower Caves | Entered another Lower Caves area 10432 | -7/Lower Caves | Discovered new exit (range 6) 10434 | -7/Lower Caves | Entered Zion 10453 | -7/Zion | Discovered new exit (range 13) 10476 | -7/Zion | Attacked by Zionites 10476 | -7/Zion | Spotted 49-601(B) 10476 | -7/Zion | Spotted 8T-OPC(B) 10486 | -7/Zion | Entered Proximity Caves 10522 | -6/Proximity Caves | Discovered exit to Factory (range 15) 10525 | -6/Proximity Caves | Entered Factory 10525 | -6/Factory | Evolved 2 slots: Utility x2 10526 | -6/Factory | Identified exit to Factory 10526 | -6/Factory | Identified exit to Lower Caves 10630 | -6/Factory | Discovered exit to Factory (range 12) 10632 | -6/Factory | Identified exit to Extension 10708 | -6/Factory | Discovered exit to Factory (range 15) 10803 | -6/Factory | Discovered exit to Factory (range 15) 10887 | -6/Factory | Fabricated Imp. Cesium-ion Thruster (x1) 10905 | -6/Factory | Fabricated Imp. Cesium-ion Thruster? 10912 | -6/Factory | Build established: Sprinter 10958 | -6/Factory | Lost 6 parts (1p3n2u) 11003 | -6/Factory | Manually triggered Chute Trap 11003 | -6/Factory | Sucked down chute 11003 | -6/Factory | Entered Waste 11006 | -6/Waste | Spotted C-40 Crusher 11016 | -6/Waste | Warlord forces began an assault 11096 | -6/Waste | Murdered 5 allies 11103 | -6/Waste | Spotted C-40 Crusher 11113 | -6/Waste | Allies destroyed C-40 Crusher 11143 | -6/Waste | Lost 3 allies 11188 | -6/Waste | Spotted C-40 Crusher 11190 | -6/Waste | Allies destroyed C-40 Crusher 11204 | -6/Waste | Spotted C-40 Crusher 11223 | -6/Waste | Build established: Mutant 11224 | -6/Waste | Spotted C-40 Crusher 11231 | -6/Waste | Allies destroyed C-40 Crusher 11234 | -6/Waste | Allies destroyed C-40 Crusher 11261 | -6/Waste | Lost 5 allies 11351 | -6/Waste | Allies destroyed C-40 Crusher 11554 | -6/Waste | Spotted C-40 Crusher 11575 | -6/Waste | Discovered new exit (range 10) 11591 | -6/Waste | Allies destroyed C-40 Crusher 11808 | -6/Waste | Build established: Construct 12601 | -6/Waste | Entered Factory 12601 | -6/Factory | Accompanied by 3 allies 12967 | -6/Factory | Discovered exit to Factory (range 8) 12969 | -6/Factory | Entered another Factory area 12969 | -5/Factory | Evolved 2 slots: Propulsion x1, Utility x1 13120 | -5/Factory | Spotted B-75 Beast 13269 | -5/Factory | Search patrols dispatched 13434 | -5/Factory | Discovered new exit (range 6) 13436 | -5/Factory | Identified exit to Upper Caves 13550 | -5/Factory | Fabricated Imp. Cesium-ion Thruster? 13709 | -5/Factory | Discovered new exit (range 15) 13716 | -5/Factory | Identified exit to Factory 13815 | -5/Factory | Manually triggered Chute Trap 13815 | -5/Factory | Sucked down chute 13815 | -5/Factory | Entered Waste 13816 | -5/Waste | Joined by Warlord forces that had cleared the area 14198 | -5/Waste | Murdered 6 allies 14667 | -5/Waste | Discovered new exit (range 12) 14677 | -5/Waste | Identified exit to Factory 14834 | -5/Waste | Entered Factory 14834 | -5/Factory | Accompanied by 11 allies 14897 | -5/Factory | Discovered exit to Factory (range 6) 15038 | -5/Factory | Garrison activated, responded to threat 15211 | -5/Factory | Identified exit to Garrison 15211 | -5/Factory | Entered Garrison 15217 | -5/Garrison | Triggered checkpoint 15233 | -5/Garrison | Triggered checkpoint 15260 | -5/Garrison | Spotted B-75 Beast 15266 | -5/Garrison | Triggered checkpoint 15317 | -5/Garrison | Discovered new exit (range 8) 15319 | -5/Garrison | Lost 3 parts (1u2w) 15322 | -5/Garrison | Identified exit to Factory 15323 | -5/Garrison | Attempted to access garrison exit controls, blocked by remote lockdown 15396 | -5/Garrison | Discovered exit to Factory (range 10) 15403 | -5/Garrison | Attempted to access garrison exit controls, blocked by remote lockdown 15432 | -5/Garrison | Core integrity fell below 50% 15433 | -5/Garrison | Triggered checkpoint 15461 | -5/Garrison | Discovered exit to Factory (range 11) 15466 | -5/Garrison | Entered Factory 15470 | -5/Factory | Self-destructed Last Messages --------------- 15433_ S-27 Virus unfolds itself. 15433_ Scrap Engine destroyed. 15436_ Triggered Stasis Trap. 15436_ A bubble of rippling energy engulfs the area. 15436_ Field strength at 73. 15437_ Field strength at 16. 15438_ Stasis field depleted. 15438_ Triggered Stasis Trap. 15438_ A bubble of rippling energy engulfs the area. 15438_ Field strength at 61. 15438_ Field strength at 12. 15439_ Stasis field depleted. 15439_ Knocked back. 15439_ S-27 Virus destroyed. 15455_ Gravity Neutralizer destroyed. 15461_ EXIT=FOUND: FACTORY LOCATION=FACTORY GOAL=ESCAPE Map ----- +----------------------------------------------------+ | ??????????????????????????????????????? | | ??????????????????????????????????????? | | ??????????????????????????????????????? | | ??????????????????????????????????????? | | ??????????????????????????????????????? | | ??????????????????????????????????????? | | ??????????????????????????????????????? | | ??????????????????????????????????????? | | ??????????????????????????????????????? | | ??????????????????????????????????????? | | ??????????????????????????????????????? | | ???????????????????##############?????? | | ???????????????????# #?????? | | ???????????????????# #?????? | | ???????????????????# #?????? | | ???????????????????# #?????? | | ???????????????????# #?????? | | ???????????????????# #?????? | | ???????????????????# #?????? | | ???????????????????# #?????? | | ???????????????????# #?????? | | ???????????????????# #?????? | | ???????????????????# #?????? | | ???????????????????# #?????? | | ?????????????? ###########+######?????? | | ?????????? @ #??????? | | ?????????? #??????? | | ?????????? #??????? | | ??????????? #??????? | | ??????????? #??????? | | ????????????############ ###??????? | | ???????????????????????# #????????? | | ???????????????????????# #????????? | | ???????????????????????# #????????? | | ???????????????????????# #????????? | | ???????????????????????# #????????? | | ???????????????????????# #????????? | | ???????????????????????# #????????? | | ???????????????????????# #????????? | | ???????????????????????# #????????? | | ???????????????????????# ?????????? | | ???????????????????????? ?????????? | | ?????????????????????????? ?????????? | | ??????????????????????????????????????? | | ??????????????????????????????????????? | | ??????????????????????????????????????? | | ??????????????????????????????????????? | | ??????????????????????????????????????? | | ??????????????????????????????????????? | | ??????????????????????????????????????? | +----------------------------------------------------+ Best States ------------- Heat Dissipation 56 Energy Generation 23 Energy Capacity 456 Matter Stores 300 Matter Capacity 300 Sight Range 16 Robot Scan Range 18 Terrain Scan Range 16 Terrain Scan Density 10 Additional Mass Support 12 Armor Coverage 150 Propulsion Shielding 66 Evasion (%) 73 Recoil Reduction 2 Offensive Hacking 10 Defensive Hacking 20 Authchip Count 1 Item Schematics ----------------- Hacking Suite | -7/Factory | Hacked Angular Momentum Engine | -7/Factory | Hacked Nuclear Pulse Thruster | -6/Factory | Scanalyzed Imp. Cesium-ion Thruster | -6/Factory | Hacked Biomechanical Wings | -6/Factory | Scanalyzed Robot Schematics ------------------ None Fabricated ------------ Hacking Suite | x1 | -7/Factory Imp. Cesium-ion Thruster | x1 | -6/Factory Imp. Cesium-ion Thruster | x1 | -6/Factory Imp. Cesium-ion Thruster | x1 | -5/Factory Alien Tech Used ----------------- None Achievements -------------- None Challenges ------------ None Game ------ Seed ModifiedTerrabombMatter Manual? 0 Play Time 03:15:08 Cumulative 805.6 hours Start 2024.08.17 @ 20:12:36 End 2024.08.17 @ 23:54:17 Sessions 1 Manual Loads 0 Difficulty Rogue Special Mode None Game No. 532 Rogue 532 Adventurer 0 Explorer 0 Win Type - Total 115 Types 79/7/8/10/5/1/4/0/1 Lore% 72 Gallery% 81 Achievement% 82 Wizard Run 0 Options --------- Layout 1 ASCII 0 Keyboard 0 Movement Numpad Keybinds 0 Fullscreen 1 Font 24/Terminus Map View 50x35 Zoom Use 0% Tactical HUD 1 Map Filters NONE Filters NONE Steam 1 RUN: 11e199a2-8acb-4baa-9620-9eeb35e250ba